lending/lending_fUSD_20250917
["ID","MTS","AMOUNT","RATE_DAILY","PERIOD"]
[385892739,1758109701345,127.07220493,0.000226,2]
[385892740,1758109831762,-386.28854406,0.0002355,2]
[385892741,1758109831775,-221.91145594,0.0002355,2]
[385892742,1758109831784,-446.0,0.0002378,2]
[385892743,1758109831793,-270.09303749,0.00024127,2]
[385892744,1758109831803,-240.72550657,0.00024222,2]
[385892745,1758109831819,-367.47449343,0.00024222,2]
[385892746,1758109831828,-72.86068925,0.00024631,2]
[385892747,1758109832052,-122.13931075,0.00024631,2]
[385892748,1758109832062,-159.22818925,0.00024632,2]
[385892749,1758109832080,-208.77181075,0.00024632,2]
[385892750,1758109832089,-42.88414345,0.00024633,2]
[385892751,1758109832125,-251.86628888,0.00024633,2]
[385892752,1758109832134,-156.67306377,0.00024633,2]
[385892754,1758109832143,-150.0,0.00024633,2]
[385892756,1758109832152,-150.00000001,0.00024633,2]
[385892758,1758109832162,-150.0,0.00024633,2]
[385892759,1758109832171,-150.0,0.00024633,2]
[385892761,1758109832180,-150.0,0.00024633,2]
[385892763,1758109832189,-150.0,0.00024633,2]
[385892765,1758109832198,-48.13371112,0.0002486,2]
[385892769,1758109832237,-209.78407386,0.0002486,2]
[385892770,1758109832246,-900.0,0.00024884,2]
[385892771,1758109832255,-670.58624095,0.00024885,2]
[385892772,1758109832265,-322.6107,0.00024885,2]
[385892773,1758109832274,-151.0,0.00024885,2]
[385892774,1758109832283,-151.0,0.00024885,2]
[385892775,1758109832292,-151.0,0.00024885,2]
[385892776,1758109832301,-151.0,0.00024885,2]
[385892777,1758109832311,-151.0,0.00024885,2]
[385892778,1758109832320,-151.0,0.00024885,2]
[385892779,1758109832329,-151.0,0.00024885,2]
[385892780,1758109832338,-151.0,0.00024885,2]
[385892781,1758109832347,-151.0,0.00024885,2]
[385892782,1758109832356,-151.0,0.00024885,2]
[385892783,1758109832366,-151.0,0.00024885,2]
[385892784,1758109832375,-151.0,0.00024885,2]
[385892785,1758109832385,-151.0,0.00024885,2]
[385892786,1758109832394,-151.0,0.00024885,2]
[385892787,1758109832404,-151.0,0.00024885,2]
[385892788,1758109832413,-151.0,0.00024885,2]
[385892789,1758109832422,-151.0,0.00024885,2]
[385892790,1758109832431,-151.0,0.00024885,2]
[385892791,1758109832441,-151.0,0.00024885,2]
[385892792,1758109832450,-151.0,0.00024885,2]
[385892793,1758109832459,-151.0,0.00024885,2]
[385892794,1758109832469,-151.0,0.00024885,2]
[385892795,1758109832479,-608.2,0.00024895,2]
[385892796,1758109832488,-152.62,0.00024899,2]
[385892797,1758109832497,-15435.63633188,0.000249,2]
[385892798,1758109832507,-437.0,0.0002497,2]
[385892799,1758109832516,-150.0,0.00025053,7]
[385892800,1758109832526,-150.0,0.00025183,2]
[385892801,1758109832535,-237.26467836,0.00025298,2]
[385892802,1758109832544,-408.07631215,0.00025405,2]
[385892803,1758109837821,-851.1814562,0.00025405,2]
[385893164,1758109843002,-1509.0,0.00025405,2]
[385893170,1758109843052,-1964.28223165,0.00025405,2]
[385893172,1758109843063,-278.27338821,0.00025412,2]
[385893174,1758109843072,-319.28209805,0.00025527,2]
[385893176,1758109843082,-608.2,0.00025568,2]
[385893178,1758109843091,-360.29080789,0.00025642,2]
[385893180,1758109843100,-296.74,0.00025732,2]
[385893182,1758109843110,-175.8,0.00025732,2]
[385893184,1758109843119,-401.29951773,0.00025756,2]
[385893186,1758109843127,-500.0,0.00025773,2]
[385893188,1758109843137,-500.0,0.00025798,2]
[385893190,1758109843146,-500.0,0.00025798,2]
[385893192,1758109843156,-500.0,0.00025798,2]
[385893194,1758109843165,-500.0,0.00025798,2]
[385893196,1758109843174,-500.0,0.00025798,2]
[385893198,1758109843184,-362.15918028,0.00025798,2]
[385893200,1758109843193,-500.0,0.00025798,2]
[385893202,1758109843202,-2000.0,0.000258,2]
[385893204,1758109843212,-442.30822757,0.00025871,2]
[385893206,1758109843221,-150.0,0.00025978,2]
[385893208,1758109843230,-483.31693741,0.00025986,2]
[385893211,1758109843240,-394.41,0.00026095,2]
[385893213,1758109843249,-161.87,0.00026095,2]
[385893215,1758109843259,-666.0,0.00026095,3]
[385893217,1758109843269,-524.32564725,0.00026101,2]
[385893219,1758109843281,-166.84,0.00026137,2]
[385893221,1758109843290,-428.0,0.0002615,2]
[385893223,1758109843300,-565.33435709,0.00026215,2]
[385893225,1758109843308,-267.46074303,0.00026229,2]
[385893227,1758109843318,-739.41688833,0.00026249,2]
[385893229,1758109843327,-334.5472959,0.00026254,2]
[385893231,1758109843336,-606.34306693,0.0002633,2]
[385893233,1758109843345,-739.41688833,0.00026348,2]
[385893259,1758109843600,-647.35177677,0.00026445,2]
[385893262,1758109843621,-526.818,0.0002649,13]
[385893264,1758109843631,-324.63940771,0.0002656,2]
[385893269,1758109843662,-363.7210789,0.0002656,2]
[385893271,1758109843671,-756.0,0.00026579,2]
[385893273,1758109843681,-1540.82300164,0.00026579,2]
[385893275,1758109843697,-1850.17699836,0.00026579,2]
[385893277,1758109843706,-1261.0,0.00026579,2]
[385893279,1758109843716,-2040.0,0.00026579,2]
[385893281,1758109843725,-602.0,0.00026579,2]
[385893283,1758109843735,-1581.0,0.00026579,2]
[385893285,1758109843744,-1303.0,0.00026579,2]
[385893287,1758109843754,-569.0,0.00026579,2]
[385893289,1758109843764,-898.0,0.00026579,2]
[385893291,1758109843774,-813.0,0.00026579,2]
[385893294,1758109843784,-6178.0,0.00026579,2]
[385893296,1758109843794,-4172.0,0.00026579,2]
[385893298,1758109843803,-18871.0,0.00026579,2]
[385893300,1758109843813,-726.0,0.00026579,2]
[385893302,1758109843822,-150.0,0.00026579,2]
[385893304,1758109843832,-1349.613875,0.00026593,2]
[385893306,1758109843842,-216.16836656,0.00026599,2]
[385893308,1758109843856,-227.32012916,0.00026599,2]
[385893310,1758109843865,-500.0,0.00026599,2]
[385893312,1758109843874,-279.13410103,0.00026599,2]
[385893314,1758109843884,-21496.5257925,0.000266,2]
[385893316,1758109843895,-9651.6225905,0.000266,2]
[385893318,1758109843904,-500.0,0.000266,2]
[385893320,1758109843913,-441.00984481,0.000266,2]
[385893322,1758109843924,-500.0,0.000266,2]
[385893324,1758109843933,-500.0,0.000266,2]
[385893326,1758109843944,-729.36919645,0.00026674,2]
[385893328,1758109843956,-770.37790629,0.00026789,2]
[385893330,1758109843965,-39074.68119934,0.00026799,2]
[385893434,1758109845727,-33870.7061859,0.00026799,2]
[385893435,1758109845737,-4821.53094114,0.00026806,2]
[385893436,1758109845746,-8207.76287296,0.00026827,2]
[385893449,1758109871089,151.0,0.0002197,2]
[385893450,1758109908184,151.0,0.00022127,2]
[385893451,1758109927028,151.0,0.00022168,2]
[385893452,1758109939366,250.0,0.00015,2]
[385893453,1758109941127,300.0,0.00017,2]
[385893454,1758109941635,350.0,0.00019,2]
[385893455,1758109942721,400.0,0.00021,2]
[385893456,1758109943796,450.0,0.00023,2]
[385893457,1758109966737,250.52685477,0.0003,120]
[385893458,1758110004421,500.0,0.00029812,120]
[385893459,1758110091987,156.36,0.00012646,2]
[385893460,1758110092182,156.36,0.00014051,2]
[385893461,1758110092447,156.36,0.00015456,2]
[385893462,1758110092686,156.36,0.00016861,2]
[385893463,1758110092908,156.36,0.00018266,2]
[385893464,1758110093144,156.36,0.00019671,2]
[385893465,1758110093352,156.36,0.00021076,2]
[385893466,1758110093537,156.36,0.00022481,2]
[385893467,1758110102280,166.56,0.00016712,2]
[385893468,1758110115318,155.57436212,0.00030137,120]
[385893469,1758110192407,151.0,0.00022002,2]
[385893470,1758110211794,151.0,0.00022006,2]
[385893471,1758110446340,500.0,0.00013699,2]
[385893472,1758110448264,500.0,0.00021306,2]
[385893473,1758110449492,450.0,0.00021661,2]
[385893474,1758110450720,405.0,0.00022016,2]
[385893475,1758110451939,364.5,0.00022371,2]
[385893476,1758110603654,500.0,0.00029832,120]
[385893477,1758110642732,29000.0,0.00023,2]
[385893478,1758110781064,2.15651966,0.00020233,2]
[385893491,1758111032297,-157.12348034,0.00020233,2]
[385893493,1758111032307,-350.711553,0.00023695,2]
[385893495,1758111032317,-255.88564885,0.00023814,2]
[385893497,1758111032326,-156.36,0.00023886,2]
[385893499,1758111032336,-1100.0,0.000241,2]
[385893500,1758111032345,-386.0,0.000243,2]
[385893502,1758111032355,-150.00000001,0.00024633,2]
[385893504,1758111032365,-150.0,0.00024633,2]
[385893506,1758111032375,-150.0,0.00024633,2]
[385893507,1758111032385,-242.80935986,0.00024633,2]
[385893508,1758111032395,-300.0,0.00024899,2]
[385893509,1758111032407,-1200.0,0.00024899,2]
[385893510,1758111032416,-15588.48860517,0.000249,2]
[385893511,1758111032426,-500.0,0.00025,2]
[385893512,1758111032435,-666.0,0.00025291,3]
[385893513,1758111032445,-175.8,0.00025291,2]
[385893514,1758111032454,-545.05,0.00025291,2]
[385893515,1758111032464,-150.0,0.00025291,7]
[385893516,1758111032473,-8468.21,0.00025291,2]
[385893517,1758111032483,-200.0,0.00025291,2]
[385893518,1758111032493,-156.36,0.00025291,2]
[385893519,1758111032502,-257.91778498,0.00025314,2]
[385893520,1758111032511,-378.0,0.0002548,2]
[385893521,1758111032520,-373.57324225,0.00026212,2]
[385893522,1758111032530,-1581.0,0.00026213,2]
[385893523,1758111032539,-602.0,0.00026213,2]
[385893524,1758111032549,-569.0,0.00026213,2]
[385893525,1758111032559,-1303.0,0.00026213,2]
[385893527,1758111032569,-813.0,0.00026213,2]
[385893529,1758111032578,-322.6107,0.0002626,2]
[385893531,1758111032587,-670.58624095,0.0002626,2]
[385893533,1758111032597,-726.0,0.00026276,2]
[385893535,1758111032606,-18871.0,0.00026276,2]
[385893537,1758111032615,-6178.0,0.00026276,2]
[385893539,1758111032625,-823.25,0.00026575,2]
[385893541,1758111032634,-905.36,0.00026575,2]
[385893543,1758111032643,-252.823,0.00026579,2]
[385893545,1758111032652,-150.0,0.00026581,2]
[385893547,1758111032662,-150.189,0.00026581,2]
[385893549,1758111032671,-150.0,0.00026581,2]
[385893550,1758111032681,-756.0,0.00026581,2]
[385893551,1758111032690,-3391.0,0.00026581,2]
[385893552,1758111032699,-1261.0,0.00026581,2]
[385893553,1758111032709,-2040.0,0.00026581,2]
[385893554,1758111032718,-213.18994792,0.0002665,2]
[385893556,1758111032728,-160.0,0.00026653,2]
[385893557,1758111032737,-160.0,0.00026653,2]
[385893558,1758111032746,-421.455,0.00026659,14]
[385893559,1758111032756,-213.89,0.00026661,2]
[385893560,1758111032765,-371.0,0.0002667,2]
[385893561,1758111032775,-6678.2553803,0.0002668,2]
[385893563,1758111032786,-267.46074303,0.00026683,2]
[385893564,1758111032796,-516.07479255,0.00026688,2]
[385893566,1758111032806,-1000.0,0.0002677,2]
[385893568,1758111032815,-1679.55510811,0.0002677,2]
[385893569,1758111032824,-766.92,0.00026791,2]
[385893570,1758111032833,-26691.99128059,0.00026827,2]
[385893571,1758111032843,-34899.75415355,0.00026829,2]
[385893572,1758111032852,-6339.10143343,0.00026835,2]
[385893573,1758111032861,-9402.77896813,0.00026836,2]
[385893574,1758111032871,-80400.07874362,0.00026841,2]
[385893575,1758111032880,-4821.53094114,0.00026845,2]
[385893576,1758111032889,-6339.10143343,0.00026858,2]
[385893577,1758111032898,-160.0,0.00026866,2]
[385893578,1758111032907,-6339.10143343,0.00026878,2]
[385893579,1758111032917,-160.0,0.00026892,2]
[385893580,1758111032927,-6339.10143343,0.00026894,2]
[385893581,1758111032936,-58371.77225473,0.00026894,2]
[385893582,1758111032948,-10339.1892928,0.00026894,2]
[385893583,1758111032996,-5681.67979071,0.00026894,2]
[385893584,1758111033008,-6007.43740538,0.00026894,2]
[385893585,1758111033018,-34899.75415355,0.00026897,2]
[385893586,1758111033027,-242.0,0.000269,2]
[385893587,1758111033037,-34899.75415355,0.00026902,2]
[385893588,1758111033048,-214.17871032,0.00026902,2]
[385893604,1758111038094,-956.08382737,0.00026276,2]
[385893605,1758111038105,-703.08820863,0.00026276,2]
[385893780,1758111040244,-1153.55734321,0.00026276,2]
[385893784,1758111040268,-447.3150005,0.00026212,2]
[385893786,1758111040278,-549.51040312,0.00026276,2]
[385893789,1758111040299,-809.76021767,0.00026276,2]
[385893791,1758111040308,-1178.0,0.00026276,2]
[385893793,1758111040317,-34685.57544323,0.00026902,2]
[385893795,1758111040327,-9402.77896813,0.00026905,2]
[385893797,1758111040336,-6339.10143343,0.00026908,2]
[385893799,1758111040346,-80400.07874362,0.00026909,2]
[385893801,1758111040355,-4821.53094114,0.00026925,2]
[385893803,1758111040364,-80400.07874362,0.00026927,2]
[385893805,1758111040373,-4821.53094114,0.00026934,2]
[385893807,1758111040383,-34899.75415355,0.00026947,2]
[385893809,1758111040393,-6339.10143343,0.00026954,2]
[385893811,1758111040402,-9402.77896813,0.00026959,2]
[385893813,1758111040413,-4821.53094114,0.00026959,2]
[385893815,1758111040422,-80400.07874362,0.0002697,2]
[385893817,1758111040431,-706.89234578,0.0002697,2]
[385893820,1758111040441,-1000.0,0.0002697,2]
[385893821,1758111040450,-420.0,0.00026977,2]
[385893824,1758111040460,-175.8,0.00026977,2]
[385893826,1758111040470,-4821.53094114,0.00026979,2]
[385893828,1758111040480,-4404.18689527,0.00026981,2]
[385893830,1758111040490,-168.0,0.00026983,2]
[385893832,1758111040499,-80400.07874362,0.00026984,2]
[385893834,1758111040509,-168.0,0.00026986,2]
[385893836,1758111040519,-9402.77896813,0.00026987,2]
[385893838,1758111040529,-4155.24377016,0.0002699,2]
[385893840,1758111040538,-348.27525417,0.0002699,2]
[385893842,1758111040548,-34899.75415355,0.00026991,2]
[385893844,1758111040558,-9402.77896813,0.00026994,2]
[385893846,1758111040568,-9402.77896813,0.00026995,2]
[385893848,1758111040578,-164.79407042,0.00026996,2]
[385893850,1758111040588,-4821.53094114,0.00026998,2]
[385893854,1758111040608,-211.32937791,0.00026999,2]
[385893856,1758111040618,-172.16132117,0.00026999,2]
[385893858,1758111040627,-205.84730958,0.00026999,2]
[385893860,1758111040637,-500.0,0.00026999,2]
[385893862,1758111040646,-6339.10143343,0.00027,2]
[385893864,1758111040656,-16805.14919701,0.00027,3]
[385893965,1758111043131,-5527.19080299,0.00027,3]
[385893966,1758111043141,-560.76369647,0.00027,2]
[385893967,1758111043150,-160.0,0.00027,3]
[385893968,1758111043158,-2000.0,0.00027,2]
[385893969,1758111043169,-727.92,0.00027,2]
[385893970,1758111043179,-1000.0,0.00027,2]
[385893971,1758111043188,-32.41537223,0.00027,2]
[385893972,1758111043239,-460.0,0.00027,2]
[385893973,1758111043293,-1165.46457098,0.00027,2]
[385893974,1758111043397,-7127.27903219,0.00027,2]
[385893975,1758111043407,-615.16749293,0.00027,12]
[385893976,1758111043417,-383.0,0.00027,2]
[385893977,1758111043427,-213.18994792,0.00027,3]
[385893978,1758111043436,-1502.63782161,0.00027,2]
[385893979,1758111043446,-160.0,0.00027,3]
[385893980,1758111043455,-783.0,0.00027,2]
[385893981,1758111043464,-766.92,0.00027,2]
[385893982,1758111043472,-4869.58625744,0.00027001,2]
[385894370,1758111048370,160.54,0.00012646,2]
[385894702,1758111062960,300.0,0.00028903,120]
[385894703,1758111064735,195.0,0.00028903,120]
[385894704,1758111200850,500.0,0.00029673,120]
[385894705,1758111370094,170.87,0.00016712,2]
[385894710,1758111747273,250.0,0.00015,2]
[385894711,1758111748559,300.0,0.00017,2]
[385894712,1758111766165,236.60373539,0.0001725,7]
[385894713,1758111801542,500.0,0.00029783,120]
[385894715,1758111908040,29042.52626461,0.0002,2]
[385894716,1758111908072,127122.80269999,0.0002,2]
[385894822,1758112101992,630.80428135,0.000135,2]
[385894823,1758112109324,1902.95431411,0.0001,2]
[385894824,1758112111264,190.27762322,7.888e-05,2]
[385894825,1758112117963,220.57695201,0.0001,2]
[385894826,1758112131368,859.60492327,0.0001,2]
[385894842,1758112232245,-836.09514378,0.0002085,2]
[385894843,1758112232255,-1651.93221299,0.00024,5]
[385894844,1758112232593,-1599.32896717,0.00024,5]
[385894845,1758112232603,-250.0,0.00024887,2]
[385894846,1758112232613,-1200.0,0.00024899,2]
[385894847,1758112232623,-300.0,0.00024899,2]
[385894848,1758112232632,-2911.13470873,0.000249,2]
[385894850,1758112232644,-1580.37195999,0.000249,2]
[385894853,1758112232664,-1166.0,0.000249,2]
[385894855,1758112232675,-410.18768663,0.000249,2]
[385894857,1758112232687,-5754.23507554,0.000249,2]
[385894858,1758112232698,-3586.02542179,0.000249,2]
[385894860,1758112232708,-250.0,0.00025033,2]
[385894861,1758112232719,-282.14,0.000251,7]
[385894862,1758112232729,-1100.14671534,0.000252,2]
[385894863,1758112232738,-105.59402141,0.00025291,2]
[385894864,1758112232750,-56.27597859,0.00025291,2]
[385894866,1758112232760,-196.55,0.00025291,2]
[385894868,1758112232769,-666.0,0.00025621,3]
[385894869,1758112232778,-272.52,0.00025865,2]
[385894871,1758112232788,-161.04,0.00025885,2]
[385894873,1758112232798,-150.0,0.0002592,7]
[385894875,1758112232808,-342.0,0.00026,2]
[385894877,1758112232818,-173.0,0.00026454,2]
[385894879,1758112232828,-168.0,0.00026534,7]
[385894881,1758112232838,-196.55,0.00026556,2]
[385894884,1758112232847,-254.0,0.0002658,2]
[385894886,1758112232857,-200.0,0.000266,9]
[385894888,1758112232866,-213.18994792,0.00026638,2]
[385894890,1758112232876,-241.26625896,0.0002666,2]
[385894892,1758112232888,-81.34444104,0.0002666,2]
[385894894,1758112232898,-670.58624095,0.0002666,2]
[385894896,1758112232908,-257.91778498,0.0002666,2]
[385894897,1758112232917,-500.0,0.00026675,2]
[385894898,1758112232927,-500.0,0.00026675,2]
[385894899,1758112232936,-500.0,0.00026675,2]
[385894900,1758112232945,-321.92789627,0.00026675,2]
[385894901,1758112232955,-350.0,0.00026675,2]
[385894902,1758112232965,-500.0,0.00026675,2]
[385894903,1758112232975,-255.05661554,0.00026675,2]
[385894904,1758112232990,-244.94338446,0.00026675,2]
[385894905,1758112232999,-217.57762149,0.00026675,2]
[385894906,1758112233010,-316.79216479,0.00026675,2]
[385894911,1758112238325,-183.20783521,0.00026675,2]
[385894912,1758112238335,-477.84134043,0.00026675,2]
[385894913,1758112238344,-374.991505,0.00026675,2]
[385894914,1758112238354,-250.0,0.00026675,2]
[385894915,1758112238364,-500.0,0.00026675,2]
[385894916,1758112238373,-346.32631545,0.00026675,2]
[385894917,1758112238386,-1581.0,0.00026676,2]
[385894918,1758112238396,-1303.0,0.00026676,2]
[385894919,1758112238405,-569.0,0.00026676,2]
[385894920,1758112238415,-602.0,0.00026676,2]
[385894921,1758112238425,-813.0,0.00026676,2]
[385894922,1758112238434,-898.0,0.00026676,2]
[385894923,1758112238444,-1178.0,0.00026676,2]
[385894924,1758112238453,-3391.0,0.00026676,2]
[385894925,1758112238463,-2040.0,0.00026676,2]
[385894928,1758112238473,-4172.0,0.00026676,2]
[385894929,1758112238483,-6124.257,0.00026676,2]
[385894930,1758112238493,-500.0,0.000267,9]
[385894931,1758112238503,-547.86,0.00026781,2]
[385894932,1758112238512,-700.0,0.000268,9]
[385894934,1758112238522,-17174.03194309,0.00026801,2]
[385894936,1758112238531,-7478.51874721,0.00026803,2]
[385894938,1758112238541,-1358.37887861,0.0002681,2]
[385894940,1758112238551,-1358.37887861,0.00026816,2]
[385894942,1758112238560,-7478.5187472,0.00026829,2]
[385894944,1758112238570,-4692.40966398,0.00026831,2]
[385894948,1758112238601,-397.86000031,0.00026831,2]
[385894950,1758112238632,-2388.24908291,0.00026831,2]
[385894951,1758112238642,-1138.40601038,0.00026835,2]
[385894969,1758112240232,-15487.61193339,0.00026676,2]
[385894974,1758112240400,-1167.1296,0.00026676,2]
[385895031,1758112243346,-2216.25846661,0.00026676,2]
[385895032,1758112243356,-5418.55023106,0.00026835,2]
[385895033,1758112243366,-2338.17988643,0.00026842,2]
[385895250,1758112246292,-2057.49658254,0.00026842,2]
[385895263,1758112246403,-1986.88036759,0.00026842,2]
[385895265,1758112246416,-1095.96191065,0.00026842,2]
[385895267,1758112246426,-7478.51874721,0.00026844,2]
[385895269,1758112246438,-7478.51874721,0.00026856,2]
[385895271,1758112246448,-7478.5187472,0.00026863,2]
[385895273,1758112246457,-5588.48184773,0.00026864,2]
[385895331,1758112257853,500.0,0.00013699,2]
[385895332,1758112263555,1542.70205589,0.00029307,120]
[385895334,1758112404863,539.74359,0.00029977,120]
[385895335,1758112426256,170.87,0.00016712,2]
[385895339,1758112950080,169.24,0.00012905,2]
[385895340,1758112950274,169.24,0.00013585,2]
[385895341,1758112950496,169.24,0.00014264,2]
[385895342,1758112950910,169.24,0.00014943,2]
[385895343,1758112951119,169.24,0.00015622,2]
[385895344,1758112951354,169.24,0.00016302,2]
[385895345,1758112951571,169.24,0.00016981,2]
[385895346,1758112951784,169.24,0.0001766,2]
[385895347,1758112952064,169.24,0.00018339,2]
[385895348,1758112952303,169.24,0.00019018,2]
[385895349,1758112952679,169.24,0.00019698,2]
[385895350,1758113025954,200.0,0.000196,2]
[385895356,1758113432528,-169.24,0.00020377,2]
[385895357,1758113432538,-169.24,0.00021056,2]
[385895358,1758113432547,-169.24,0.00021735,2]
[385895359,1758113432557,-250.0,0.00022415,2]
[385895360,1758113432567,-169.24,0.00022415,2]
[385895361,1758113432577,-337.97884828,0.00022475,2]
[385895362,1758113432586,-169.24,0.00023094,2]
[385895363,1758113432596,-212.01693221,0.00023638,2]
[385895364,1758113432630,-70.04306779,0.00023638,2]
[385895365,1758113432639,-169.24,0.00023773,2]
[385895366,1758113432649,-54.48709697,0.0002433,2]
[385895367,1758113432732,-706.23041931,0.0002433,2]
[385895368,1758113432744,-293.56308872,0.0002433,2]
[385895369,1758113432754,-169.24,0.00024452,2]
[385895371,1758113432764,-500.0,0.0002463,2]
[385895373,1758113432773,-196.51,0.00024843,3]
[385895375,1758113432783,-1200.0,0.00024899,2]
[385895376,1758113432793,-14994.79973465,0.000249,2]
[385895378,1758113432816,-116.42542549,0.000249,2]
[385895380,1758113432825,-347.0,0.000249,2]
[385895382,1758113432835,-2386.48011821,0.00025023,2]
[385895386,1758113432866,-281.9940252,0.00025023,2]
[385895387,1758113432897,-474.50987965,0.00025023,2]
[385895388,1758113432908,-467.04980155,0.00025023,2]
[385895403,1758113438432,-1226.4308436,0.00025023,2]
[385895404,1758113438445,-244.93005497,0.00025023,2]
[385895405,1758113438454,-169.24,0.00025132,2]
[385895406,1758113438463,-44.6621197,0.00025203,2]
[385895410,1758113440297,-105.3378803,0.00025203,2]
[385895411,1758113440306,-1081.97137789,0.00025392,2]
[385895412,1758113440316,-151.0,0.00025578,2]
[385895413,1758113440325,-257.91778498,0.00025578,2]
[385895414,1758113440335,-706.75488793,0.00025768,2]
[385895415,1758113440345,-169.24,0.00025811,2]
[385895416,1758113440355,-217.48,0.00025827,2]
[385895417,1758113440364,-150.0,0.00025906,7]
[385895418,1758113440373,-187.24,0.00025944,2]
[385895419,1758113440382,-500.0,0.00025997,2]
[385895420,1758113440391,-500.0,0.00025997,2]
[385895421,1758113440400,-500.0,0.00025997,2]
[385895422,1758113440409,-506.2815486,0.00025997,2]
[385895423,1758113440418,-500.0,0.00025997,2]
[385895424,1758113440427,-500.0,0.00025997,2]
[385895425,1758113440438,-500.0,0.00025997,2]
[385895426,1758113440447,-500.0,0.00025997,2]
[385895427,1758113440456,-500.0,0.00025997,2]
[385895428,1758113440466,-500.0,0.00025997,2]
[385895429,1758113440476,-375.79181655,0.00025997,2]
[385895430,1758113440485,-500.0,0.00025997,2]
[385895431,1758113440494,-500.0,0.00025997,2]
[385895432,1758113440503,-500.0,0.00025997,2]
[385895433,1758113440512,-500.0,0.00025997,2]
[385895434,1758113440521,-500.0,0.00025997,2]
[385895435,1758113440530,-500.0,0.00025997,2]
[385895436,1758113440540,-500.0,0.00025997,2]
[385895437,1758113440549,-500.0,0.00025997,2]
[385895438,1758113440558,-1124.29,0.00026,2]
[385895439,1758113440567,-5521.43255723,0.00026,2]
[385895440,1758113440580,-2447.99260015,0.00026,2]
[385895441,1758113440610,-1421.41354261,0.00026,2]
[385895442,1758113440622,-14424.98561247,0.00026,2]
[385895443,1758113440816,-52936.17568754,0.00026,2]
[385895444,1758113440826,-500.0,0.00026,2]
[385895445,1758113440835,-503.09697983,0.00026,2]
[385895446,1758113440845,-340.0,0.0002608,2]
[385895447,1758113440854,-150.0,0.00026213,2]
[385895448,1758113440864,-1997.03881044,0.00026244,2]
[385895449,1758113440873,-648.97368795,0.00026299,2]
[385895450,1758113440886,-216.47477543,0.00026299,2]
[385895451,1758113440896,-199.87800858,0.00026299,2]
[385895452,1758113440905,-7000.0,0.000263,2]
[385895453,1758113440914,-300.0,0.000265,9]
[385895454,1758113440924,-164.79407042,0.00026532,2]
[385895455,1758113440934,-459.54743589,0.00026532,2]
[385895456,1758113440943,-1314.80809397,0.00026532,2]
[385895457,1758113440952,-6373.4200088,0.00026542,2]
[385895458,1758113440962,-3739.71939309,0.00026542,2]
[385895459,1758113440972,-661.29,0.0002659,2]
[385895460,1758113440981,-600.0,0.000266,9]
[385895461,1758113440990,-151.0,0.00026626,2]
[385895462,1758113440999,-151.0,0.00026626,2]
[385895463,1758113441008,-322.6107,0.00026626,2]
[385895464,1758113441018,-151.0,0.00026626,2]
[385895465,1758113441027,-670.58624095,0.00026626,2]
[385895466,1758113441037,-151.0,0.00026626,2]
[385895467,1758113441046,-540864.37223198,0.00026632,3]
[385895468,1758113441055,-12852.6632264,0.00026632,2]
[385895469,1758113441065,-151.0,0.00026632,7]
[385895470,1758113441074,-151.0,0.00026632,7]
[385895471,1758113441083,-151.0,0.00026632,7]
[385895472,1758113441093,-151.0,0.00026632,7]
[385895473,1758113441102,-151.0,0.00026632,7]
[385895474,1758113441112,-151.0,0.00026632,7]